[Event "GrandPrix_29.05"]
[Site "Chess.com"]
[Date "2020.05.29"]
[Round "3"]
[White "VitaliyBernadskiy"]
[Black "DarkAlekhine"]
[Result "1-0"]
[WhiteElo "2400"]
[BlackElo "2078"]
[TimeControl "600+2"]
[EndTime "10:23:50 PDT"]
[Termination "VitaliyBernadskiy won by resignation"]

1. e4 {[%clk 0:10:01.9]} 1... Nf6 {[%clk 0:10:01]} 2. e5 {[%clk 0:09:50.7]} 2...
Nd5 {[%clk 0:10:00.7]} 3. c4 {[%clk 0:09:48.2]} 3... Nb6 {[%clk 0:10:00.2]} 4.
c5 {[%clk 0:09:49.5]} 4... Nd5 {[%clk 0:10:00.2]} 5. Nc3 {[%clk 0:09:51]} 5...
e6 {[%clk 0:09:48.5]} 6. d4 {[%clk 0:09:48.2]} 6... Nxc3 {[%clk 0:09:44.2]} 7.
bxc3 {[%clk 0:09:48.9]} 7... b6 {[%clk 0:09:45.5]} 8. cxb6 {[%clk 0:09:33.8]}
8... axb6 {[%clk 0:09:47.4]} 9. Bd3 {[%clk 0:09:32.3]} 9... Bb7 {[%clk
0:08:16.8]} 10. Qg4 {[%clk 0:09:15.3]} 10... h5 {[%clk 0:08:11.5]} 11. Qg3
{[%clk 0:09:16]} 11... h4 {[%clk 0:08:12.5]} 12. Qg4 {[%clk 0:09:17.2]} 12... d6
{[%clk 0:07:57.3]} 13. Nf3 {[%clk 0:08:59.1]} 13... h3 {[%clk 0:07:16.8]} 14.
O-O {[%clk 0:08:59.6]} 14... hxg2 {[%clk 0:07:10.4]} 15. Re1 {[%clk 0:09:00.6]}
15... Bxf3 {[%clk 0:06:12.8]} 16. Qxf3 {[%clk 0:09:01.2]} 16... d5 {[%clk
0:06:13.8]} 17. Qxg2 {[%clk 0:08:36.9]} 17... Qh4 {[%clk 0:05:27.4]} 18. Re3
{[%clk 0:08:03.3]} 18... Ba3 {[%clk 0:04:25.5]} 19. Bd2 {[%clk 0:08:02.2]} 19...
g6 {[%clk 0:03:36]} 20. Rf3 {[%clk 0:07:09]} 20... Be7 {[%clk 0:03:34.1]} 21. a4
{[%clk 0:07:09.2]} 21... Rh5 {[%clk 0:02:52.1]} 22. Rg3 {[%clk 0:06:52.2]} 22...
c6 {[%clk 0:02:41.9]} 23. Be2 {[%clk 0:06:33.4]} 23... Rh8 {[%clk 0:02:41.3]}
24. Bg4 {[%clk 0:06:33.8]} 24... Qh7 {[%clk 0:02:36]} 25. h3 {[%clk 0:06:16.1]}
25... Nd7 {[%clk 0:02:33.4]} 26. Be2 {[%clk 0:06:10.4]} 26... Qh4 {[%clk
0:02:02]} 27. Kh2 {[%clk 0:06:05.4]} 27... Bf8 {[%clk 0:01:51.6]} 28. Rg4 {[%clk
0:06:03.2]} 28... Qh7 {[%clk 0:01:52]} 29. Bd3 {[%clk 0:06:02.4]} 29... Bh6
{[%clk 0:01:48.5]} 30. Rxg6 {[%clk 0:05:43.7]} 30... Bxd2 {[%clk 0:01:28.9]} 31.
Rxe6+ {[%clk 0:05:44.4]} 31... fxe6 {[%clk 0:01:30]} 32. Bxh7 {[%clk 0:05:45.6]}
32... Rxh7 {[%clk 0:01:31]} 33. Qg6+ {[%clk 0:05:45.4]} 33... Rf7 {[%clk
0:01:31.8]} 34. Qxe6+ {[%clk 0:05:44.8]} 34... Kf8 {[%clk 0:01:20.6]} 35. Qd6+
{[%clk 0:05:39.6]} 35... Kg7 {[%clk 0:01:04.1]} 36. Rg1+ {[%clk 0:05:36.5]}
36... Kh8 {[%clk 0:01:04.6]} 37. Qg6 {[%clk 0:04:51.8]} 37... Rh7 {[%clk
0:01:02.2]} 38. e6 {[%clk 0:04:28.6]} 38... Bf4+ {[%clk 0:01:01.5]} 39. Kh1
{[%clk 0:04:29.7]} 39... Rxh3+ {[%clk 0:00:42.2]} 40. Kg2 {[%clk 0:04:30.6]}
40... Rh6 {[%clk 0:00:43.2]} 41. Qf5 {[%clk 0:04:20.5]} 41... Bh2 {[%clk
0:00:32.3]} 42. Rh1 {[%clk 0:03:58.6]} 42... Rg8+ {[%clk 0:00:32.7]} 43. Kf1
{[%clk 0:03:59.3]} 43... Nf6 {[%clk 0:00:33.6]} 44. Rxh2 {[%clk 0:03:56.6]}
44... Rxh2 {[%clk 0:00:30.5]} 45. Qxf6+ {[%clk 0:03:57.8]} 45... Kh7 {[%clk
0:00:30.1]} 46. Qf5+ {[%clk 0:03:58.3]} 46... Rg6 {[%clk 0:00:28.8]} 47. e7
{[%clk 0:03:57.5]} 1-0

[Event "GrandPrix_29.05"]
[Site "Chess.com"]
[Date "2020.05.29"]
[Round "3"]
[White "OhanyanEminChess"]
[Black "Nodar_Lortkipanidze"]
[Result "0-1"]
[WhiteElo "2130"]
[BlackElo "2371"]
[TimeControl "600+2"]
[EndTime "10:23:59 PDT"]
[Termination "Nodar_Lortkipanidze won on time"]

1. e4 {[%clk 0:10:01.9]} 1... e6 {[%clk 0:10:00.9]} 2. d4 {[%clk 0:09:59.8]}
2... d5 {[%clk 0:10:02]} 3. Nc3 {[%clk 0:10:00]} 3... Nf6 {[%clk 0:10:03.2]} 4.
e5 {[%clk 0:09:59.7]} 4... Nfd7 {[%clk 0:10:04.6]} 5. f4 {[%clk 0:10:00.4]} 5...
c5 {[%clk 0:10:04.5]} 6. Nf3 {[%clk 0:10:01.8]} 6... Nc6 {[%clk 0:10:05.4]} 7.
Be3 {[%clk 0:10:03.2]} 7... a6 {[%clk 0:10:06.9]} 8. Qd2 {[%clk 0:10:03.1]} 8...
cxd4 {[%clk 0:10:08.3]} 9. Nxd4 {[%clk 0:10:02.8]} 9... Bc5 {[%clk 0:10:09.6]}
10. O-O-O {[%clk 0:08:57.6]} 10... Nxd4 {[%clk 0:10:07.9]} 11. Bxd4 {[%clk
0:08:57.9]} 11... O-O {[%clk 0:10:08.9]} 12. g4 {[%clk 0:06:38.9]} 12... b5
{[%clk 0:10:07.6]} 13. Bg2 {[%clk 0:06:10.3]} 13... Rb8 {[%clk 0:09:46.1]} 14.
Rhe1 {[%clk 0:06:01.6]} 14... a5 {[%clk 0:09:40.1]} 15. Ne2 {[%clk 0:05:27.9]}
15... b4 {[%clk 0:09:39.1]} 16. Bxc5 {[%clk 0:05:25.1]} 16... Nxc5 {[%clk
0:09:40]} 17. Nd4 {[%clk 0:05:26.6]} 17... Bd7 {[%clk 0:09:09.2]} 18. f5 {[%clk
0:05:20.6]} 18... a4 {[%clk 0:08:33.2]} 19. Qf4 {[%clk 0:04:37.6]} 19... b3
{[%clk 0:08:29.4]} 20. f6 {[%clk 0:03:26.2]} 20... gxf6 {[%clk 0:07:22.2]} 21.
exf6 {[%clk 0:03:11]} 21... Kh8 {[%clk 0:07:22]} 22. Re5 {[%clk 0:02:20.8]}
22... bxa2 {[%clk 0:07:06.2]} 23. Qh6 {[%clk 0:01:50.5]} 23... Rg8 {[%clk
0:06:01.8]} 24. Rh5 {[%clk 0:01:49.1]} 24... a1=Q+ {[%clk 0:05:58.7]} 25. Kd2
{[%clk 0:01:48.9]} 25... Qa5+ {[%clk 0:05:58.3]} 26. Ke2 {[%clk 0:00:53.1]}
26... Bb5+ {[%clk 0:05:50]} 27. Kf2 {[%clk 0:00:13.5]} 27... Nd3+ {[%clk
0:05:35]} 28. cxd3 {[%clk 0:00:12.8]} 28... Qxb2+ {[%clk 0:05:26.3]} 29. Ke3
{[%clk 0:00:07]} 29... Qxd4+ {[%clk 0:05:21.5]} 30. Kxd4 {[%clk 0:00:07.7]}
30... Qb6+ {[%clk 0:04:47.7]} 31. Ke5 {[%clk 0:00:05.3]} 31... Qc7+ {[%clk
0:04:25.4]} 32. Kd4 {[%clk 0:00:06.5]} 32... Bxd3 {[%clk 0:04:04.7]} 33. Rxd3
{[%clk 0:00:02.1]} 33... Rb4+ {[%clk 0:03:51.4]} 34. Ke3 {[%clk 0:00:03]} 34...
Qe5+ {[%clk 0:03:30]} 35. Kf2 {[%clk 0:00:02.6]} 35... Rb2+ {[%clk 0:03:29.4]}
36. Kg1 {[%clk 0:00:02.1]} 36... Qe1+ {[%clk 0:03:29.5]} 37. Bf1 {[%clk
0:00:03.5]} 37... Qf2+ {[%clk 0:03:30.7]} 0-1

[Event "GrandPrix_29.05"]
[Site "Chess.com"]
[Date "2020.05.29"]
[Round "3"]
[White "Salnaa"]
[Black "Inkalubo"]
[Result "1-0"]
[WhiteElo "2141"]
[BlackElo "1652"]
[TimeControl "600+2"]
[EndTime "10:24:02 PDT"]
[Termination "Salnaa won by resignation"]

1. d4 {[%clk 0:10:01.9]} 1... Nf6 {[%clk 0:10:00.1]} 2. c4 {[%clk 0:10:02.9]}
2... e6 {[%clk 0:10:00.7]} 3. Nc3 {[%clk 0:10:03.9]} 3... Bb4 {[%clk 0:09:59.6]}
4. Qc2 {[%clk 0:10:05]} 4... b6 {[%clk 0:09:59.5]} 5. a3 {[%clk 0:10:05.2]} 5...
Bxc3+ {[%clk 0:09:58.9]} 6. Qxc3 {[%clk 0:10:07.1]} 6... Ne4 {[%clk 0:09:52.9]}
7. Qc2 {[%clk 0:10:07.7]} 7... Bb7 {[%clk 0:09:53.7]} 8. Nf3 {[%clk 0:10:05.8]}
8... f5 {[%clk 0:09:49.9]} 9. e3 {[%clk 0:10:05.9]} 9... d6 {[%clk 0:09:41.8]}
10. b4 {[%clk 0:09:58.5]} 10... Nd7 {[%clk 0:09:38.9]} 11. Be2 {[%clk
0:09:58.7]} 11... g5 {[%clk 0:08:58.4]} 12. d5 {[%clk 0:09:24.9]} 12... e5
{[%clk 0:07:34.7]} 13. O-O {[%clk 0:09:12.1]} 13... g4 {[%clk 0:06:59.7]} 14.
Nd2 {[%clk 0:08:56.7]} 14... Nxd2 {[%clk 0:06:23.2]} 15. Bxd2 {[%clk 0:08:47.3]}
15... Qg5 {[%clk 0:06:20.1]} 16. f4 {[%clk 0:08:07.3]} 16... gxf3 {[%clk
0:05:35.6]} 17. Rxf3 {[%clk 0:08:06.9]} 17... Rf8 {[%clk 0:05:02.5]} 18. Raf1
{[%clk 0:07:49.1]} 18... e4 {[%clk 0:04:37.2]} 19. Rg3 {[%clk 0:07:38]} 19...
Qf6 {[%clk 0:04:20.5]} 20. Bh5+ {[%clk 0:07:24.3]} 20... Ke7 {[%clk 0:04:21.1]}
21. Bg4 {[%clk 0:06:53.7]} 21... Ne5 {[%clk 0:03:34.4]} 22. Rxf5 {[%clk
0:06:26.6]} 22... Qg6 {[%clk 0:02:30.8]} 23. Qxe4 {[%clk 0:06:17.4]} 23... Bc8
{[%clk 0:02:04]} 24. Rxe5+ {[%clk 0:03:21.9]} 24... dxe5 {[%clk 0:02:02.1]} 25.
Qxe5+ {[%clk 0:03:14.7]} 25... Kd8 {[%clk 0:02:01.4]} 26. Bf3 {[%clk 0:03:05.7]}
26... Qf5 {[%clk 0:01:28]} 27. Qxf5 {[%clk 0:03:01.2]} 27... Bxf5 {[%clk
0:01:25.7]} 28. e4 {[%clk 0:03:02.3]} 28... Bg6 {[%clk 0:01:24]} 29. h4 {[%clk
0:02:55.1]} 29... Re8 {[%clk 0:01:07.4]} 30. Rg4 {[%clk 0:02:37.7]} 30... a5
{[%clk 0:00:52]} 31. b5 {[%clk 0:02:34.5]} 31... Kc8 {[%clk 0:00:48.7]} 32. Rf4
{[%clk 0:02:29.6]} 32... Kb7 {[%clk 0:00:46.6]} 33. h5 {[%clk 0:02:29.7]} 1-0

[Event "GrandPrix_29.05"]
[Site "Chess.com"]
[Date "2020.05.29"]
[Round "3"]
[White "ZverevLev"]
[Black "Mugzyyy"]
[Result "1-0"]
[WhiteElo "2242"]
[BlackElo "2562"]
[TimeControl "600+2"]
[EndTime "10:24:12 PDT"]
[Termination "ZverevLev won by checkmate"]

1. e4 {[%clk 0:10:01.9]} 1... c5 {[%clk 0:09:59.5]} 2. Nf3 {[%clk 0:09:59.5]}
2... d6 {[%clk 0:10:00.4]} 3. d4 {[%clk 0:09:59.5]} 3... cxd4 {[%clk 0:10:02.3]}
4. Nxd4 {[%clk 0:09:59.8]} 4... Nf6 {[%clk 0:10:03.8]} 5. Nc3 {[%clk 0:09:59.8]}
5... Nc6 {[%clk 0:10:04.2]} 6. Bg5 {[%clk 0:09:58.3]} 6... g6 {[%clk 0:10:05.5]}
7. Qd2 {[%clk 0:08:07.2]} 7... Bg7 {[%clk 0:10:04.8]} 8. Nb3 {[%clk 0:07:42.5]}
8... O-O {[%clk 0:10:01.7]} 9. O-O-O {[%clk 0:07:41.7]} 9... a5 {[%clk
0:09:49.7]} 10. Bh6 {[%clk 0:06:48.9]} 10... a4 {[%clk 0:09:40]} 11. Nd4 {[%clk
0:06:10]} 11... Nxe4 {[%clk 0:09:25.2]} 12. Nxe4 {[%clk 0:06:08.1]} 12... Bxd4
{[%clk 0:09:24]} 13. Bxf8 {[%clk 0:06:06.6]} 13... Qxf8 {[%clk 0:09:25.9]} 14.
h4 {[%clk 0:05:57.9]} 14... a3 {[%clk 0:09:26.3]} 15. b3 {[%clk 0:05:40.6]}
15... Bb2+ {[%clk 0:09:27.3]} 16. Kb1 {[%clk 0:05:40.2]} 16... Bh8 {[%clk
0:09:29.2]} 17. h5 {[%clk 0:05:34.2]} 17... Qg7 {[%clk 0:09:27.5]} 18. c3 {[%clk
0:05:33.8]} 18... Bf5 {[%clk 0:09:24.1]} 19. Bd3 {[%clk 0:05:32.5]} 19... Nb4
{[%clk 0:08:22.9]} 20. h6 {[%clk 0:04:17.9]} 20... Qe5 {[%clk 0:08:22.1]} 21. f4
{[%clk 0:04:17.5]} 21... Qxe4 {[%clk 0:08:22.9]} 22. Bxe4 {[%clk 0:04:12.3]}
22... Bxe4+ {[%clk 0:08:24.8]} 23. Kc1 {[%clk 0:03:46.6]} 23... Rc8 {[%clk
0:08:04.7]} 24. Rh3 {[%clk 0:03:44.8]} 24... Nd5 {[%clk 0:07:23.1]} 25. Qxd5
{[%clk 0:03:23.7]} 25... Bxd5 {[%clk 0:07:25]} 26. Rxd5 {[%clk 0:03:24.5]} 26...
Bxc3 {[%clk 0:07:26]} 27. Kd1 {[%clk 0:03:19.5]} 27... Bb2 {[%clk 0:07:26.3]}
28. f5 {[%clk 0:03:09.3]} 28... Rc1+ {[%clk 0:07:16.4]} 29. Kd2 {[%clk
0:03:06.1]} 29... Ra1 {[%clk 0:07:18.3]} 30. Ra5 {[%clk 0:02:57.2]} 30... Bc1+
{[%clk 0:06:49.3]} 31. Kc2 {[%clk 0:02:53.6]} 31... Bxh6 {[%clk 0:06:51.2]} 32.
Rxh6 {[%clk 0:02:50.9]} 32... Rxa2+ {[%clk 0:06:51.8]} 33. Kc3 {[%clk
0:02:45.9]} 33... gxf5 {[%clk 0:06:50.6]} 34. Rh5 {[%clk 0:02:29.4]} 34... e6
{[%clk 0:06:49.9]} 35. Rg5+ {[%clk 0:02:23.5]} 35... Kf8 {[%clk 0:06:51.1]} 36.
Ra8+ {[%clk 0:02:23.4]} 36... Ke7 {[%clk 0:06:51.9]} 37. Kb4 {[%clk 0:02:21.3]}
37... Kf6 {[%clk 0:06:51.3]} 38. Rgg8 {[%clk 0:02:09.8]} 38... d5 {[%clk
0:06:47.7]} 39. Rxa3 {[%clk 0:02:08.3]} 39... Rc2 {[%clk 0:06:48.9]} 40. Ra7
{[%clk 0:02:05.6]} 40... d4 {[%clk 0:06:36]} 41. Rxb7 {[%clk 0:02:04.9]} 41...
e5 {[%clk 0:06:36.9]} 42. Rf8 {[%clk 0:02:02.6]} 42... d3 {[%clk 0:06:21.2]} 43.
Rfxf7+ {[%clk 0:01:59.5]} 43... Kg5 {[%clk 0:06:16.1]} 44. Rxh7 {[%clk
0:01:54.6]} 44... d2 {[%clk 0:06:14.3]} 45. Rbd7 {[%clk 0:01:53.1]} 45... e4
{[%clk 0:06:14.6]} 46. Rh3 {[%clk 0:01:39]} 46... Kf4 {[%clk 0:06:12.5]} 47. Rc3
{[%clk 0:01:31.6]} 47... Ra2 {[%clk 0:06:11.3]} 48. Kc5 {[%clk 0:01:16.2]} 48...
Kg4 {[%clk 0:06:05.3]} 49. Rg7+ {[%clk 0:01:03.7]} 49... Kf4 {[%clk 0:06:02.8]}
50. g3+ {[%clk 0:01:03.2]} 50... Ke5 {[%clk 0:06:04.2]} 51. Re7+ {[%clk
0:01:03.4]} 51... Kf6 {[%clk 0:06:04.8]} 52. Rd7 {[%clk 0:01:04]} 52... Kg5
{[%clk 0:05:58.8]} 53. Rg7+ {[%clk 0:00:48]} 53... Kf6 {[%clk 0:05:59]} 54. Rd7
{[%clk 0:00:47.7]} 54... Kg5 {[%clk 0:06:00.2]} 55. b4 {[%clk 0:00:39.1]} 55...
Kg4 {[%clk 0:05:58.1]} 56. b5 {[%clk 0:00:36.8]} 56... Rb2 {[%clk 0:05:50.8]}
57. b6 {[%clk 0:00:36.4]} 57... f4 {[%clk 0:05:38.2]} 58. gxf4 {[%clk
0:00:35.2]} 58... Kxf4 {[%clk 0:05:40.1]} 59. b7 {[%clk 0:00:22]} 59... e3
{[%clk 0:05:38.4]} 60. Rf7+ {[%clk 0:00:12.7]} 60... Kg4 {[%clk 0:05:39.6]} 61.
Rc4+ {[%clk 0:00:12.5]} 61... Kg3 {[%clk 0:05:40]} 62. Rb4 {[%clk 0:00:05.5]}
62... Rxb4 {[%clk 0:05:36.6]} 63. Kxb4 {[%clk 0:00:06.2]} 63... d1=Q {[%clk
0:05:37.8]} 64. b8=Q+ {[%clk 0:00:07]} 64... Kg2 {[%clk 0:05:39.3]} 65. Rg7+
{[%clk 0:00:07.2]} 65... Kf1 {[%clk 0:05:36.7]} 66. Rf7+ {[%clk 0:00:06.5]}
66... Ke2 {[%clk 0:05:28.8]} 67. Qh2+ {[%clk 0:00:06.6]} 67... Ke1 {[%clk
0:05:30]} 68. Qg1+ {[%clk 0:00:06.8]} 68... Ke2 {[%clk 0:05:31.1]} 69. Qg2+
{[%clk 0:00:05.6]} 69... Kd3 {[%clk 0:05:31.4]} 70. Rd7# {[%clk 0:00:06.6]} 1-0

[Event "GrandPrix_29.05"]
[Site "Chess.com"]
[Date "2020.05.29"]
[Round "3"]
[White "Pash2015"]
[Black "Khayala13"]
[Result "1-0"]
[WhiteElo "2188"]
[BlackElo "1970"]
[TimeControl "600+2"]
[EndTime "10:24:12 PDT"]
[Termination "Pash2015 won on time"]

1. e4 {[%clk 0:09:56.5]} 1... c5 {[%clk 0:09:51.4]} 2. d4 {[%clk 0:09:57]} 2...
cxd4 {[%clk 0:09:40]} 3. Nf3 {[%clk 0:09:57.2]} 3... e6 {[%clk 0:09:25.5]} 4.
Bc4 {[%clk 0:09:56.8]} 4... a6 {[%clk 0:09:21.2]} 5. O-O {[%clk 0:09:56.6]} 5...
b5 {[%clk 0:09:21]} 6. Bb3 {[%clk 0:09:57.1]} 6... Bb7 {[%clk 0:09:14.4]} 7. Qe2
{[%clk 0:09:57.6]} 7... Nc6 {[%clk 0:09:08.2]} 8. Rd1 {[%clk 0:09:57.5]} 8...
Nge7 {[%clk 0:08:59.6]} 9. Bg5 {[%clk 0:09:56.1]} 9... f6 {[%clk 0:08:59.8]} 10.
Bh4 {[%clk 0:09:55.6]} 10... Ng6 {[%clk 0:08:59.9]} 11. Bg3 {[%clk 0:09:56.4]}
11... Bc5 {[%clk 0:08:56.7]} 12. c3 {[%clk 0:09:56.8]} 12... e5 {[%clk
0:08:23.3]} 13. cxd4 {[%clk 0:09:53.5]} 13... Nxd4 {[%clk 0:08:24.2]} 14. Nxd4
{[%clk 0:09:54]} 14... Bxd4 {[%clk 0:08:25.2]} 15. Nc3 {[%clk 0:09:54.9]} 15...
h5 {[%clk 0:08:04.3]} 16. h4 {[%clk 0:09:46.5]} 16... Qb6 {[%clk 0:07:30]} 17.
Rd2 {[%clk 0:08:45.8]} 17... Rc8 {[%clk 0:07:00.4]} 18. Rad1 {[%clk 0:08:40.8]}
18... b4 {[%clk 0:06:24.3]} 19. Nd5 {[%clk 0:08:17.9]} 19... Qb5 {[%clk
0:06:07.6]} 20. Qf3 {[%clk 0:08:13.8]} 20... Bxd5 {[%clk 0:05:47.4]} 21. exd5
{[%clk 0:07:45.5]} 21... d6 {[%clk 0:05:31.3]} 22. Qf5 {[%clk 0:07:30.5]} 22...
Ne7 {[%clk 0:05:30.3]} 23. Qe6 {[%clk 0:07:23.3]} 23... Qd7 {[%clk 0:05:09.1]}
24. Rxd4 {[%clk 0:07:19.6]} 24... Qxe6 {[%clk 0:04:19.7]} 25. dxe6 {[%clk
0:07:21.5]} 25... exd4 {[%clk 0:04:19.3]} 26. Bxd6 {[%clk 0:07:14.3]} 26... Nc6
{[%clk 0:03:04]} 27. Ba4 {[%clk 0:07:03.4]} 27... Kd8 {[%clk 0:03:03.1]} 28.
Rxd4 {[%clk 0:06:16]} 28... g6 {[%clk 0:02:45.7]} 29. e7+ {[%clk 0:06:10.8]}
29... Kd7 {[%clk 0:02:36.5]} 30. Bc5+ {[%clk 0:06:11.8]} 30... Kc7 {[%clk
0:02:23]} 31. Rd6 {[%clk 0:05:39.1]} 31... Kb7 {[%clk 0:01:16]} 32. Rxf6 {[%clk
0:05:08.3]} 32... Ne5 {[%clk 0:00:51.6]} 33. Rb6+ {[%clk 0:05:01.1]} 33... Kc7
{[%clk 0:00:35.6]} 34. Rxa6 {[%clk 0:05:01.8]} 34... Ng4 {[%clk 0:00:14.6]} 35.
Ra7+ {[%clk 0:04:52.7]} 35... Kb8 {[%clk 0:00:13.8]} 36. Ra5 {[%clk 0:04:46.2]}
36... Kb7 {[%clk 0:00:12.6]} 37. Rb5+ {[%clk 0:04:41.7]} 37... Ka6 {[%clk
0:00:12.9]} 38. f3 {[%clk 0:04:34.2]} 38... Ne5 {[%clk 0:00:08.7]} 39. Bd4
{[%clk 0:04:04.6]} 39... Rc1+ {[%clk 0:00:06.5]} 40. Kh2 {[%clk 0:04:02.2]}
40... Nxf3+ {[%clk 0:00:03.8]} 41. gxf3 {[%clk 0:04:01.4]} 41... Rhc8 {[%clk
0:00:05.5]} 42. Re5 {[%clk 0:03:57.5]} 42... b3 {[%clk 0:00:05]} 43. Bxb3 {[%clk
0:03:52.2]} 43... Rb1 {[%clk 0:00:03.3]} 44. e8=Q {[%clk 0:03:49]} 1-0

[Event "GrandPrix_29.05"]
[Site "Chess.com"]
[Date "2020.05.29"]
[Round "3"]
[White "rusuvlad95"]
[Black "Shota_Azaladze"]
[Result "0-1"]
[WhiteElo "2104"]
[BlackElo "2341"]
[TimeControl "600+2"]
[EndTime "10:24:13 PDT"]
[Termination "Shota_Azaladze won by resignation"]

1. e4 {[%clk 0:10:01.9]} 1... g6 {[%clk 0:10:00.2]} 2. d4 {[%clk 0:10:01.1]}
2... Bg7 {[%clk 0:10:01.1]} 3. Nf3 {[%clk 0:09:58]} 3... c6 {[%clk 0:10:01.7]}
4. Bd3 {[%clk 0:09:49.5]} 4... d6 {[%clk 0:10:01.5]} 5. c4 {[%clk 0:09:45.9]}
5... e5 {[%clk 0:10:01]} 6. d5 {[%clk 0:09:14.4]} 6... Ne7 {[%clk 0:09:54.5]} 7.
h3 {[%clk 0:09:03.3]} 7... O-O {[%clk 0:09:53.7]} 8. g4 {[%clk 0:09:00.2]} 8...
Na6 {[%clk 0:09:33.6]} 9. Nc3 {[%clk 0:08:45.3]} 9... Nc5 {[%clk 0:09:30.2]} 10.
Bc2 {[%clk 0:08:44.9]} 10... cxd5 {[%clk 0:09:09.4]} 11. cxd5 {[%clk 0:08:46.8]}
11... Qb6 {[%clk 0:08:56.4]} 12. Bd2 {[%clk 0:07:28.2]} 12... Bd7 {[%clk
0:08:34.4]} 13. Rb1 {[%clk 0:07:24.9]} 13... a5 {[%clk 0:08:34.7]} 14. O-O
{[%clk 0:06:55.6]} 14... f5 {[%clk 0:08:22.9]} 15. gxf5 {[%clk 0:06:32.3]} 15...
gxf5 {[%clk 0:08:24.8]} 16. exf5 {[%clk 0:05:59.9]} 16... Nxf5 {[%clk
0:08:18.4]} 17. Kh2 {[%clk 0:05:30.9]} 17... Kh8 {[%clk 0:07:34.9]} 18. Rg1
{[%clk 0:05:21.1]} 18... Rae8 {[%clk 0:06:54.6]} 19. Ng5 {[%clk 0:04:04.3]}
19... e4 {[%clk 0:04:27.1]} 20. Qh5 {[%clk 0:03:33]} 20... h6 {[%clk 0:04:27.6]}
21. Nf7+ {[%clk 0:02:37.2]} 21... Rxf7 {[%clk 0:04:24.4]} 22. Qxf7 {[%clk
0:02:39.1]} 22... Rf8 {[%clk 0:04:19.2]} 23. Qh5 {[%clk 0:02:26.6]} 23... Rg8
{[%clk 0:03:25]} 24. Nxe4 {[%clk 0:02:04.8]} 24... Nxe4 {[%clk 0:03:17.8]} 25.
Bxe4 {[%clk 0:02:06.7]} 25... Qxf2+ {[%clk 0:03:14.4]} 26. Kh1 {[%clk
0:01:14.2]} 26... Qxd2 {[%clk 0:03:09.4]} 27. Rbd1 {[%clk 0:00:44.1]} 27... Qf4
{[%clk 0:02:47.3]} 28. Bxf5 {[%clk 0:00:34.4]} 28... Qxf5 {[%clk 0:02:30.2]} 29.
Qxf5 {[%clk 0:00:15]} 29... Bxf5 {[%clk 0:02:32.1]} 0-1

[Event "GrandPrix_29.05"]
[Site "Chess.com"]
[Date "2020.05.29"]
[Round "3"]
[White "Nuvas"]
[Black "IriBu"]
[Result "1-0"]
[WhiteElo "2247"]
[BlackElo "1970"]
[TimeControl "600+2"]
[EndTime "10:24:13 PDT"]
[Termination "Nuvas won by resignation"]

1. d4 {[%clk 0:10:01.9]} 1... Nf6 {[%clk 0:09:58.2]} 2. c4 {[%clk 0:10:03.1]}
2... e6 {[%clk 0:09:56.4]} 3. Nc3 {[%clk 0:10:04.4]} 3... c5 {[%clk 0:09:52.8]}
4. d5 {[%clk 0:10:05.4]} 4... d6 {[%clk 0:09:53.1]} 5. e4 {[%clk 0:10:04.4]}
5... g6 {[%clk 0:09:53.8]} 6. Bd3 {[%clk 0:09:12]} 6... Bg7 {[%clk 0:09:53.5]}
7. h3 {[%clk 0:09:02.4]} 7... O-O {[%clk 0:09:52.8]} 8. Bg5 {[%clk 0:08:44.2]}
8... exd5 {[%clk 0:09:46.4]} 9. cxd5 {[%clk 0:08:16]} 9... Re8 {[%clk
0:09:38.2]} 10. Nf3 {[%clk 0:08:12.5]} 10... h6 {[%clk 0:09:34.2]} 11. Be3
{[%clk 0:08:04.6]} 11... c4 {[%clk 0:09:08.9]} 12. Bc2 {[%clk 0:07:58.9]} 12...
b5 {[%clk 0:09:08.5]} 13. a3 {[%clk 0:07:51.1]} 13... Nbd7 {[%clk 0:08:56.5]}
14. O-O {[%clk 0:07:48.1]} 14... a6 {[%clk 0:08:50.7]} 15. Re1 {[%clk
0:07:31.7]} 15... Qc7 {[%clk 0:08:49.2]} 16. Rc1 {[%clk 0:07:04.4]} 16... Rb8
{[%clk 0:08:41.8]} 17. b3 {[%clk 0:06:39.6]} 17... Bb7 {[%clk 0:08:19.9]} 18.
bxc4 {[%clk 0:06:36.9]} 18... bxc4 {[%clk 0:08:20.6]} 19. Ba7 {[%clk 0:05:50]}
19... Ra8 {[%clk 0:08:20.1]} 20. Bd4 {[%clk 0:05:51.6]} 20... Nc5 {[%clk
0:07:56.2]} 21. e5 {[%clk 0:05:52.6]} 21... dxe5 {[%clk 0:07:13.5]} 22. Bxe5
{[%clk 0:05:52.6]} 22... Qa5 {[%clk 0:06:59.6]} 23. Qd4 {[%clk 0:05:12.5]} 23...
Ncd7 {[%clk 0:06:55.8]} 24. Ba4 {[%clk 0:04:56.2]} 24... Nxe5 {[%clk 0:06:22.5]}
25. Nxe5 {[%clk 0:04:56.5]} 25... Rxe5 {[%clk 0:05:48.3]} 26. Rxe5 {[%clk
0:04:54.5]} 26... Nh7 {[%clk 0:04:29]} 27. Rce1 {[%clk 0:04:51.5]} 27... Nf8
{[%clk 0:03:45.5]} 28. h4 {[%clk 0:02:28.9]} 28... Qd8 {[%clk 0:03:20.3]} 29. h5
{[%clk 0:02:22.8]} 29... Qd6 {[%clk 0:02:59.3]} 30. hxg6 {[%clk 0:02:08.2]}
30... Qxg6 {[%clk 0:02:48.2]} 31. Qxc4 {[%clk 0:01:52.6]} 31... Bxe5 {[%clk
0:01:53.1]} 32. Rxe5 {[%clk 0:01:54.5]} 32... Rc8 {[%clk 0:01:54.3]} 33. Qb4
{[%clk 0:01:55.7]} 33... Ba8 {[%clk 0:01:48.7]} 34. Re3 {[%clk 0:01:40.8]} 34...
Qf6 {[%clk 0:01:37.9]} 35. Qg4+ {[%clk 0:01:41]} 35... Kh8 {[%clk 0:01:28.9]}
36. Qxc8 {[%clk 0:01:41.9]} 1-0